Cogmind - Beta 13 @@@ ROGUE MODE // 2024.04.26 @ 14:15:31 Player: Barbarossa Result: Destroyed by S-27 Virus with Autogun Performance ------------- Evolutions (3) 1500 Regions Visited (10) 2000 Robots Destroyed (56) 280 Value Destroyed (1811) 1811 Prototype IDs (2) 40 Alien Tech Used (0) 0 Bonus (3054) 3054 TOTAL SCORE: 8685 Bonus ------- High Alert Combat Kills 189 Follower Combat Kills 1192 Entered Garrisons 400 Used RIF Installer 1000 Entered DSFs 500 Friendly Fire -227 Cogmind --------- Core Integrity 0/700 Matter 246/300 Energy 54/100 System Corruption 3% Temperature Cool (0) Movement Core (200) Ox3 Location -7/Garrison Parts ------- > --- POWER (1) -------- (None) > --- PROPULSION (5) --- (None) > --- UTILITY (5) ------ Medium Storage Unit Relay Coupler [Grunt] (2) > --- WEAPON (2) ------- (None) > --- INVENTORY (10) --- Improved Cooling System Authchip [R/Combat] Relay Coupler [Sentry] (25) System Restoration Module Heavy Beamcaster Bore Cannon Bore Cannon Peak State ------------ > --- POWER ------------ Fusion Compressor > --- PROPULSION ------- Heavy Siege Treads Improved Gravmag System Improved Gyrokinetic Inverter Improved Linear Gravjet > --- UTILITY ---------- Improved Cooling System Medium Storage Unit Improved Signal Interpreter Improved Light Armor Plating Relay Coupler [Grunt] > --- WEAPON ----------- Dispersion Rifle Bore Cannon > --- INVENTORY -------- Improved Gravmag System Improved Gravmag System Authchip [R/Combat] Relay Coupler [Sentry] System Restoration Module Heavy Beamcaster Bore Cannon Advanced Datajack [Rating: 68] Favorites ----------- Power Light Ion Engine Engine Light Ion Engine Power Core Light Nuclear Core Propulsion Hover Unit Treads Medium Treads Leg Aluminum Leg Wheel Armored Wheel Hover Unit Hover Unit Flight Unit Flight Unit Utility Improved Signal Interpreter Device Improved Sensor Array Storage Small Storage Unit Processor Improved Signal Interpreter Hackware Relay Coupler [Grunt] Protection Light Armor Plating Weapon Bore Cannon Energy Gun Small Laser Ballistic Gun Light Assault Rifle Ballistic Cannon Bore Cannon Slashing Weapon Katana Special Melee Weapon Advanced Datajack Build | -11 -10 -9 -8 -7 -7 -7 -7 -7 -7 -7 ------- Run | Yrd Mat Mat Mat Fac Was Fac Gar Fac DSF Gar Slots Evolved 6 | . . 2 2 2 . . . . . . Power . | . . . . . . . . . . . Propulsion 3 | . . 2 1 . . . . . . . Utility 3 | . . . 1 2 . . . . . . Weapon . | . . . . . . . . . . . Parts Attached 106 | . 7 18 48 4 9 . 10 . 4 6 Power 15 | . 2 2 6 . 1 . 1 . 2 1 Engine 11 | . 2 2 6 . . . . . 1 . Core 4 | . . . . . 1 . 1 . 1 1 Reactor . | . . . . . . . . . . . Propulsion 48 | . 3 11 22 2 4 . 2 . 1 3 Treads 11 | . . 2 7 . 1 . 1 . . . Leg . | . . . . . . . . . . . Wheel 6 | . 3 1 1 . 1 . . . . . Hover 12 | . . . 3 2 2 . 1 . 1 3 Flight 19 | . . 8 11 . . . . . . . Utility 22 | . 1 . 10 2 2 . 5 . 1 1 Device 11 | . . . 8 1 1 . . . . 1 Storage 1 | . . . . . . . . . 1 . Processor 4 | . 1 . 2 . . . 1 . . . Hackware 1 | . . . . . . . 1 . . . Protection 5 | . . . . 1 1 . 3 . . . Artifact . | . . . . . . . . . . . Weapon 21 | . 1 5 10 . 2 . 2 . . 1 Energy Gun 10 | . 1 1 6 . . . 2 . . . Energy Cannon . | . . . . . . . . . . . Ballistic Gun 7 | . . 4 3 . . . . . . . Ballistic Cannon 2 | . . . . . 2 . . . . . Launcher . | . . . . . . . . . . . Special Weapon . | . . . . . . . . . . . Impact Weapon . | . . . . . . . . . . . Slashing Weapon 1 | . . . 1 . . . . . . . Piercing Weapon . | . . . . . . . . . . . Special Melee Weapon 1 | . . . . . . . . . . 1 Unidentified Prototypes . | . . . . . . . . . . . Parts Lost 32 | . . 4 11 . 2 . . . 2 13 Power 8 | . . 1 3 . 1 . . . 1 2 Propulsion 14 | . . 2 5 . . . . . . 7 Utility 5 | . . . 1 . 1 . . . 1 2 Weapon 5 | . . 1 2 . . . . . . 2 Highest Loss Streak 13 | . . 3 3 . 2 . . . 2 13 To Critical Strikes 1 | . . 1 . . . . . . . . Average Slot Usage (%) 89 | . 98 88 91 75 83 92 91 92 87 75 Engine 5 | . 14 8 7 7 2 . . . 1 . Core 2 | . . . . . 3 7 7 7 5 6 Treads 11 | . . 11 17 15 8 7 7 7 7 5 Leg 1 | . 25 . . . . . . . . . Wheel 1 | . 2 9 1 . 1 . . . . . Hover 11 | . . . 1 23 22 23 23 23 23 20 Flight 10 | . . 15 22 . . . . . . . Device 8 | . . . 8 6 10 15 15 15 5 . Storage 6 | . 14 11 9 7 . . . . 5 7 Processor 8 | . 13 11 9 7 7 7 7 7 7 7 Hackware 1 | . . . . . . . 4 7 7 7 Protection 4 | . . . . 6 12 15 9 7 7 5 Energy Gun 6 | . 2 11 9 . 1 . 6 7 7 5 Ballistic Gun 3 | . 25 10 3 . . . . . . . Ballistic Cannon 3 | . . . . . 10 15 7 7 7 4 Naked Turns . | . . . . . . . . . . . Heaviest Build 37 | 12 14 14 14 16 37 37 37 26 37 33 Greatest Support 70 | 20 32 40 56 21 24 24 28 28 32 70 Greatest Overweight (x) 3 | . . 3 1 . 2 1 1 . 1 1 Average Overweight (x) . | . . . . . 1 1 . . . . Largest Inventory Capacity 10 | . 8 8 8 8 8 5 5 5 10 10 Average Capacity 7 | . 8 8 8 8 5 5 5 5 8 10 Most Carried 10 | . 8 8 8 8 8 5 5 5 10 10 Average Carried 6 | . 7 7 7 6 5 5 4 5 8 9 Final Capacity 10 | 8 8 8 8 8 5 5 5 5 10 10 Final Carried 10 | 6 8 8 8 8 5 5 5 5 10 7 Class Distribution -------------------- 55% | Scavenger-Mutant 44% | Mutant Dominant Class ---------------- Mutant | -10/Materials Scavenger-Mutant | -9/Materials Scavenger-Mutant | -8/Materials Mutant | -7/Factory Scavenger-Mutant | -7/Waste Scavenger-Mutant | -7/Factory Scavenger-Mutant | -7/Garrison Scavenger-Mutant | -7/Factory Mutant | -7/DSF Mutant | -7/Garrison Resources | -11 -10 -9 -8 -7 -7 -7 -7 -7 -7 -7 ----------- Run | Yrd Mat Mat Mat Fac Was Fac Gar Fac DSF Gar Matter Collected 1725 | 200 96 184 634 . 132 . 270 . 157 52 Remotely . | . . . . . . . . . . . Salvage Created 1961 | . 274 351 912 . . . 277 . 147 . Parts 127 | . 13 32 60 . . . 9 . 13 . Haulers Intercepted 2 | . . . 2 . . . . . . . Recyclers Shooed 4 | . 1 2 1 . . . . . . . Parts Field Recycled . | . . . . . . . . . . . Retrieved Matter . | . . . . . . . . . . . Parts Self-Destructed . | . . . . . . . . . . . Prevented . | . . . . . . . . . . . Kills | -11 -10 -9 -8 -7 -7 -7 -7 -7 -7 -7 ------- Run | Yrd Mat Mat Mat Fac Was Fac Gar Fac DSF Gar Combat Hostiles Destroyed 44 | . 4 11 23 . . . 3 . 3 . Guns 40 | . 4 11 23 . . . 1 . 1 . Cannons 4 | . . . . . . . 2 . 2 . Classes Destroyed 9 | . 2 3 3 . . . . . 1 . Worker 1 | . . . 1 . . . . . . . Tunneler 1 | . . . 1 . . . . . . . Hauler 2 | . . . 2 . . . . . . . Recycler 5 | . 1 2 2 . . . . . . . Watcher 2 | . . 1 1 . . . . . . . Swarmer 21 | . . 9 10 . . . . . 2 . Grunt 12 | . 4 1 7 . . . . . . . Sentry 10 | . . 1 6 . . . 3 . . . Hunter 1 | . . . . . . . . . 1 . Thug 1 | . . . . . . . 1 . . . Best Kill Streak 9 | . 4 9 5 . . . 1 . 2 . Combat Bots Only 6 | . 3 6 4 . . . 1 . 2 . Max Kills in Single Turn 1 | . 1 1 1 . . . 1 . 1 . Gunslinging . | . . . . . . . . . . . Exploded . | . . . . . . . . . . . Melee . | . . . . . . . . . . . Uniques/NPCs Destroyed . | . . . . . . . . . . . Combat | -11 -10 -9 -8 -7 -7 -7 -7 -7 -7 -7 -------- Run | Yrd Mat Mat Mat Fac Was Fac Gar Fac DSF Gar Hostile Shots Fired 533 | . 26 53 200 . 2 . 29 . 52 171 Missed 168 | . 10 11 65 . . . 3 . 12 67 Damage Taken 5050 | . 197 458 1654 48 77 . 182 . 856 1578 Core 977 | . 20 99 156 . . . 3 . 109 590 Absorbed by Shields 33 | . . . . . . . 33 . . . Regen/Repaired (Parts) 327 | . . . 37 . 18 . 23 . 235 14 Core Remaining (%) 84 | 100 92 75 71 . . . . . . . Volleys Fired 186 | . 18 38 98 . . . 20 . 12 . Largest 2 | . 2 2 2 . . . 2 . 2 . Hottest 145 | . 40 85 105 . . . 145 . 145 . Shots Fired 343 | . 36 74 169 . . . 40 . 24 . Gun 308 | . 36 74 169 . . . 17 . 12 . Cannon 35 | . . . . . . . 23 . 12 . Launcher . | . . . . . . . . . . . Special . | . . . . . . . . . . . Kinetic 153 | . 36 36 46 . . . 23 . 12 . Thermal 190 | . . 38 123 . . . 17 . 12 . Explosive . | . . . . . . . . . . . Electromagnetic . | . . . . . . . . . . . Robot Hit Streak 18 | . 16 8 18 . . . 2 . 4 . Robot Miss Streak 8 | . 1 3 8 . . . 2 . 5 . Penetration Max . | . . . . . . . . . . . Secondary Targets 2 | . . . 2 . . . . . . . Max Gunslinging Chain 1 | . . . 1 . . . . . . . Shots Hit Robots 233 | . 32 48 133 . . . 4 . 9 7 Core Hits 143 | . 13 21 98 . . . 5 . 6 . Critical Kills 6 | . . . . . . . 4 . 2 . Critical Parts Destroyed 3 | . . . . . . . 1 . 2 . Critical Strikes 10 | . . 1 . . . . 5 . 4 . Burn 1 | . . 1 . . . . . . . . Destroy 9 | . . . . . . . 5 . 4 . Melee Attacks 9 | . . . . . . . . . . 9 Impact . | . . . . . . . . . . . Slashing . | . . . . . . . . . . . Piercing . | . . . . . . . . . . . Sneak Attacks . | . . . . . . . . . . . Combat Hostiles . | . . . . . . . . . . . Follow-up Attacks . | . . . . . . . . . . . Damage Inflicted 3172 | . 261 570 1827 . . . 162 . 352 . Guns 2874 | . 261 570 1827 . . . 27 . 189 . Cannons 298 | . . . . . . . 135 . 163 . Explosions . | . . . . . . . . . . . Melee . | . . . . . . . . . . . Ramming . | . . . . . . . . . . . Kinetic 1344 | . 261 245 540 . . . 135 . 163 . Thermal 1828 | . . 325 1287 . . . 27 . 189 . Explosive . | . . . . . . . . . . . Electromagnetic . | . . . . . . . . . . . Impact . | . . . . . . . . . . . Slashing . | . . . . . . . . . . . Piercing . | . . . . . . . . . . . Highest Corruption 3 | . . . . . . . . . . 3 Average Corruption 1 | . . . . . . . . . . 1 Corruption Purged . | . . . . . . . . . . . Corruption Blocked . | . . . . . . . . . . . Overload Shots . | . . . . . . . . . . . Overflow Damage . | . . . . . . . . . . . Projectiles . | . . . . . . . . . . . Explosions . | . . . . . . . . . . . Melee . | . . . . . . . . . . . Knockbacks 1 | . . . . . . . . . 1 . Impact . | . . . . . . . . . . . Kinetic 1 | . . . . . . . . . 1 . Secondary . | . . . . . . . . . . . Self-Inflicted Damage . | . . . . . . . . . . . Shots . | . . . . . . . . . . . Rammed 1 | . . . . . . . . . . 1 Targets Rammed 1 | . . . . . . . . . . 1 Kicked . | . . . . . . . . . . . Crushed . | . . . . . . . . . . . Highest Temperature 270 | . 18 270 184 . . . 42 . 154 42 Average Temperature 51 | . 8 80 51 . . . 8 . 91 12 Received Heat Transfer 1094 | . 117 99 486 . . . 56 . 108 228 Siege Activations . | . . . . . . . . . . . Robots Corrupted . | . . . . . . . . . . . Combat Hostiles . | . . . . . . . . . . . Parts Fried . | . . . . . . . . . . . Impact Corruptions . | . . . . . . . . . . . Robots Melted . | . . . . . . . . . . . Combat Hostiles . | . . . . . . . . . . . Parts Melted 8 | . . 1 3 . . . 4 . . . Heat Transferred 3356 | . . 865 2195 . . . 37 . 259 . Parts Sabotaged . | . . . . . . . . . . . Parts Stolen . | . . . . . . . . . . . Parts Stripped . | . . . . . . . . . . . Power Chain Reactions . | . . . . . . . . . . . Alert | -11 -10 -9 -8 -7 -7 -7 -7 -7 -7 -7 ------- Run | Yrd Mat Mat Mat Fac Was Fac Gar Fac DSF Gar Peak Influence 1450 | . 135 425 468 101 65 39 1450 742 673 482 Initial 742 | . . 56 179 86 35 39 37 742 519 482 Average 454 | . 53 241 320 97 53 39 1007 742 600 450 Maximum Alert Level 4 | . . 2 2 . . . 4 3 2 2 Low Security (%) 25 | . 100 36 5 100 100 100 4 . . . Level 1 36 | . . 56 73 . . . 11 . . 18 Level 2 19 | . . 7 21 . . . 10 . 100 81 Level 3 7 | . . . . . . . 27 100 . . Level 4 11 | . . . . . . . 45 . . . Level 5 . | . . . . . . . . . . . High Security . | . . . . . . . . . . . Max Security . | . . . . . . . . . . . Squads Dispatched 10 | . 1 1 5 2 . . . . 1 . Investigation 2 | . 1 . 1 . . . . . . . Extermination 1 | . . . . 1 . . . . . . Reinforcement 4 | . . 1 1 1 . . . . 1 . Assault . | . . . . . . . . . . . Garrison 3 | . . . 3 . . . . . . . Intercept . | . . . . . . . . . . . Searches Triggered . | . . . . . . . . . . . Construction Impeded . | . . . . . . . . . . . Haulers Reinforced . | . . . . . . . . . . . Active Scanning Responses . | . . . . . . . . . . . Cargo Convoy Interrupts . | . . . . . . . . . . . Stealth | -11 -10 -9 -8 -7 -7 -7 -7 -7 -7 -7 --------- Run | Yrd Mat Mat Mat Fac Was Fac Gar Fac DSF Gar Distress Signals 3 | . . . 3 . . . . . . . Communications Jammed . | . . . . . . . . . . . Distress Signals . | . . . . . . . . . . . Times Spotted 140 | . 8 18 41 1 6 . 28 . 11 27 Peak Tracking Total 23 | . 5 5 4 1 5 . 5 . 4 23 Tactical Retreats 5 | . 1 1 1 . 1 . . . 1 . Traps | -11 -10 -9 -8 -7 -7 -7 -7 -7 -7 -7 ------- Run | Yrd Mat Mat Mat Fac Was Fac Gar Fac DSF Gar Traps Triggered 7 | . 1 . . 2 . . 2 . 1 1 Indirectly . | . . . . . . . . . . . Trap Hack Attempts . | . . . . . . . . . . . Triggered . | . . . . . . . . . . . Disarmed . | . . . . . . . . . . . Reprogrammed . | . . . . . . . . . . . Reused . | . . . . . . . . . . . Traps Extracted . | . . . . . . . . . . . Installed . | . . . . . . . . . . . Triggered . | . . . . . . . . . . . Machines | -11 -10 -9 -8 -7 -7 -7 -7 -7 -7 -7 ---------- Run | Yrd Mat Mat Mat Fac Was Fac Gar Fac DSF Gar Machines Disabled 8 | . . . . . . . 8 . . . Max in Single Turn 1 | . . . . . . . 1 . . . Garrison Relay 2 | . . . . . . . 2 . . . Machines Repaired . | . . . . . . . . . . . Machines Dismantled . | . . . . . . . . . . . Machines Sabotaged . | . . . . . . . . . . . Overloaded Fab Kills . | . . . . . . . . . . . Hacking | -11 -10 -9 -8 -7 -7 -7 -7 -7 -7 -7 --------- Run | Yrd Mat Mat Mat Fac Was Fac Gar Fac DSF Gar Machines Accessed 16 | . . 2 10 1 . 1 1 1 . . Terminals 13 | . . 2 8 1 . . 1 1 . . Fabricators . | . . . . . . . . . . . Repair Stations 2 | . . . 2 . . . . . . . Recycling Units . | . . . . . . . . . . . Scanalyzers . | . . . . . . . . . . . Garrison Access 1 | . . . . . . 1 . . . . Total Hacks 33 | . . 4 25 1 . 1 1 1 . . Successful 21 | . . 4 14 . . 1 1 1 . . Failed 12 | . . . 11 1 . . . . . . Catastrophic 1 | . . . 1 . . . . . . . Database Lockouts . | . . . . . . . . . . . Manual 19 | . . 2 16 1 . . . . . . Terminals 25 | . . 4 18 1 . . 1 1 . . Fabricators . | . . . . . . . . . . . Repair Stations 7 | . . . 7 . . . . . . . Recycling Units . | . . . . . . . . . . . Scanalyzers . | . . . . . . . . . . . Garrison Access 1 | . . . . . . 1 . . . . Terminal Hacks 8 | . . 2 4 . . . 1 1 . . Part Schematic 1 | . . . 1 . . . . . . . Prototype ID Bank 1 | . . 1 . . . . . . . . Open DSF 1 | . . . . . . . . 1 . . Terminal Index 1 | . . . 1 . . . . . . . Alert Level 1 | . . 1 . . . . . . . . Unreport Threat 1 | . . . 1 . . . . . . . Locate Traps 1 | . . . 1 . . . . . . . Garrison Registry 1 | . . . . . . . 1 . . . Fabricator Hacks . | . . . . . . . . . . . Repair Station Hacks 5 | . . . 5 . . . . . . . Scan Component 3 | . . . 3 . . . . . . . Repair 2 | . . . 2 . . . . . . . Recycling Unit Hacks . | . . . . . . . . . . . Scanalyzer . | . . . . . . . . . . . Garrison Access Hacks 1 | . . . . . . 1 . . . . Unlock Access 1 | . . . . . . 1 . . . . Unauthorized Hacks 7 | . . 2 5 . . . . . . . Terminals 7 | . . 2 5 . . . . . . . Botnet 7 | . . 2 5 . . . . . . . Fabricators . | . . . . . . . . . . . Repair Stations . | . . . . . . . . . . . Recycling Units . | . . . . . . . . . . . Scanalyzers . | . . . . . . . . . . . Garrison Access . | . . . . . . . . . . . Data Cores Recovered . | . . . . . . . . . . . Used . | . . . . . . . . . . . Hacking Detections 12 | . . 2 9 1 . . . . . . Full Trace Events 2 | . . . 2 . . . . . . . Feedback Events . | . . . . . . . . . . . Feedback Blocked . | . . . . . . . . . . . Robot Schematics Acquired . | . . . . . . . . . . . Robots Built . | . . . . . . . . . . . Authchips . | . . . . . . . . . . . Time . | . . . . . . . . . . . Total Robot Build Rating . | . . . . . . . . . . . Part Schematics Acquired 1 | . . . 1 . . . . . . . Parts Built . | . . . . . . . . . . . Authchips . | . . . . . . . . . . . Time . | . . . . . . . . . . . Total Part Build Rating . | . . . . . . . . . . . Parts Repaired 2 | . . . 2 . . . . . . . Time 64 | . . . 64 . . . . . . . Parts Recycled . | . . . . . . . . . . . Recycled Matter . | . . . . . . . . . . . Retrieved Matter . | . . . . . . . . . . . Retrieved Components . | . . . . . . . . . . . Parts Scanalyzed . | . . . . . . . . . . . Part Schematics Acquired . | . . . . . . . . . . . Parts Damaged . | . . . . . . . . . . . Bothacking | -11 -10 -9 -8 -7 -7 -7 -7 -7 -7 -7 ------------ Run | Yrd Mat Mat Mat Fac Was Fac Gar Fac DSF Gar Used RIF Installer 2 | . . . . . . . 2 . . . Structural Interface 1 | . . . . . . . 1 . . . Robots Hacked 5 | . . . . . . . . . . 5 Non-combat . | . . . . . . . . . . . Combat 5 | . . . . . . . . . . 5 Robot Hacks Applied 5 | . . . . . . . . . . 5 parse_system 1 | . . . . . . . . . . 1 disable_weapons 1 | . . . . . . . . . . 1 overwrite_iff 3 | . . . . . . . . . . 3 Relay Couplers Released 8 | . . . . . . . 8 . . . Machine Destruction 8 | . . . . . . . 8 . . . Attached 1 | . . . . . . . 1 . . . Fabnet Peak Effective % . | . . . . . . . . . . . Robots Rewired 4 | . . . . . . . 4 . . . Allies Hacked . | . . . . . . . . . . . Hacks Repelled . | . . . . . . . . . . . Allies | -11 -10 -9 -8 -7 -7 -7 -7 -7 -7 -7 -------- Run | Yrd Mat Mat Mat Fac Was Fac Gar Fac DSF Gar Total Allies 27 | . . . . . 20 . 4 . . 3 Largest Group 19 | . . . . . 19 14 16 4 4 1 Highest-Rated Group 509 | . . . . . 465 394 509 119 119 27 Highest-Rated Ally 40 | . . . . . 35 35 40 35 35 27 Total Orders . | . . . . . . . . . . . Ally Attacks 223 | . . . . . 93 . 99 . 26 5 Total Damage 7205 | . . . . . 3471 . 3089 . 568 77 Kills 46 | . . . . . 11 . 32 . 3 . Allies Corrupted . | . . . . . . . . . . . Allies Melted . | . . . . . . . . . . . Intel | -11 -10 -9 -8 -7 -7 -7 -7 -7 -7 -7 ------- Run | Yrd Mat Mat Mat Fac Was Fac Gar Fac DSF Gar Robot Analysis Total . | . . . . . . . . . . . Derelict Logs Recovered . | . . . . . . . . . . . Drone Launches . | . . . . . . . . . . . Drone Recoveries . | . . . . . . . . . . . Exploration | -11 -10 -9 -8 -7 -7 -7 -7 -7 -7 -7 ------------- Run | Yrd Mat Mat Mat Fac Was Fac Gar Fac DSF Gar Turns Passed 4084 | . 208 319 1620 251 296 27 990 10 250 113 Spaces Moved 2848 | 1 115 233 1253 266 204 18 535 11 140 72 Core . | . . . . . . . . . . . Treads 52 | . . 4 47 . . . . . . 1 Legs 100 | 1 99 . . . . . . . . . Wheels 219 | . 16 59 109 . 35 . . . . . Hover 1362 | . . . 152 266 169 18 535 11 140 71 Flight 1115 | . . 170 945 . . . . . . . Fastest Speed 54 | 120 90 54 72 92 72 148 88 98 98 55 Average Speed 102 | 120 116 71 82 92 132 148 141 98 130 116 Slowest Speed 325 | 120 120 325 165 92 212 148 148 98 158 180 Overloaded Moves . | . . . . . . . . . . . Propulsion Burnouts . | . . . . . . . . . . . Robots Hopped 6 | . . 3 3 . . . . . . . Cave-ins Triggered . | . . . . . . . . . . . Exploration Rate (%) 40 | 2 23 22 77 6 91 1 62 . 87 32 Regions Visited 10 Branch Regions . Pre-discovered Areas . | . . . . . . . . . . . Known Exits Taken 5 | . 1 1 1 . . 1 . 1 . . Unknown Exits Taken 1 | 1 . . . . . . . . . . Scrap Searched . | . . . . . . . . . . . Spaces Dug . | . . . . . . . . . . . Terrain Destroyed 6 | . . . . . . . 6 . . . Melee . | . . . . . . . . . . . Projectile 6 | . . . . . . . 6 . . . AOE . | . . . . . . . . . . . Terrain Rammed . | . . . . . . . . . . . Walls Destroyed . | . . . . . . . . . . . Machines Disabled . | . . . . . . . . . . . Actions | -11 -10 -9 -8 -7 -7 -7 -7 -7 -7 -7 --------- Run | Yrd Mat Mat Mat Fac Was Fac Gar Fac DSF Gar Total 3712 | . 163 316 1683 272 231 18 731 10 184 104 Wait 370 | . 9 3 230 . 7 . 98 . 17 6 Move 2828 | . 114 226 1246 266 203 18 534 10 139 72 Hop 6 | . . 3 3 . . . . . . . Pick Up 54 | . 7 11 20 2 4 . 3 . 6 1 Fast Attach 32 | . 2 6 12 . 6 . 4 . 2 . Attach 26 | . 3 4 10 2 2 . . . . 5 Detach 3 | . . . 2 . . . . . . 1 Swap 48 | . 2 8 26 2 1 . 6 . 2 1 Drop 83 | . 8 17 36 . 8 . 10 . 4 . Fire 186 | . 18 38 98 . . . 20 . 12 . Melee 9 | . . . . . . . . . . 9 Ram 1 | . . . . . . . . . . 1 Kick . | . . . . . . . . . . . Crush . | . . . . . . . . . . . Escape Stasis 21 | . . . . . . . 13 . . 8 Rewire 45 | . . . . . . . 43 . 2 . Trap . | . . . . . . . . . . . Miscellaneous . | . . . . . . . . . . . Route ------- -11/Scrapyard -10/Materials -9/Materials -8/Materials (discovered 2 exits: *Fac / *Sto) -7/Factory -7/Waste -7/Factory -7/Garrison (discovered 3 exits: *Fac x3) -7/Factory -7/DSF -7/Garrison History --------- Turn | Location | Event 1 | -11/Scrapyard | Discovered new exit (range 0) 1 | -11/Scrapyard | Entered Materials 85 | -10/Materials | Discovered new exit (range 14) 100 | -10/Materials | Identified exit to Materials 209 | -10/Materials | Entered another Materials area 209 | -9/Materials | Evolved 2 slots: Propulsion x2 319 | -9/Materials | Build established: Mutant 323 | -9/Materials | Lost 3 parts (1p1n1w) 523 | -9/Materials | Discovered new exit (range 9) 528 | -9/Materials | Identified exit to Materials 528 | -9/Materials | Entered another Materials area 528 | -8/Materials | Evolved 2 slots: Propulsion x1, Utility x1 568 | -8/Materials | Repaired Sml. Laser 687 | -8/Materials | Build established: Scavenger-Mutant 739 | -8/Materials | Discovered new exit (range 3) 742 | -8/Materials | Identified exit to Factory 1311 | -8/Materials | Repaired Cesium-ion Thruster 1394 | -8/Materials | Garrison activated, responded to threat 1558 | -8/Materials | Discovered new exit (range 7) 1562 | -8/Materials | Identified exit to Storage 1894 | -8/Materials | Build established: Mutant 1906 | -8/Materials | Lost 3 parts (2n1w) 2148 | -8/Materials | Entered Factory 2148 | -7/Factory | Evolved 2 slots: Utility x2 2399 | -7/Factory | Sucked down chute 2399 | -7/Factory | Entered Waste 2400 | -7/Waste | Met a frightened Derelict 2407 | -7/Waste | Spotted C-40 Crusher 2407 | -7/Waste | Spotted C-40 Crusher 2414 | -7/Waste | Spotted C-40 Crusher 2420 | -7/Waste | Spotted C-40 Crusher 2429 | -7/Waste | Crushed by Compactor (1 part destroyed, 1 dropped) 2435 | -7/Waste | Crushed by Compactor (1 part destroyed, 1 dropped) 2441 | -7/Waste | Spotted C-40 Crusher 2447 | -7/Waste | Warlord forces began an assault 2453 | -7/Waste | Allies destroyed C-40 Crusher 2453 | -7/Waste | Allies destroyed C-40 Crusher 2493 | -7/Waste | Lost 5 allies 2520 | -7/Waste | Spotted C-40 Crusher 2527 | -7/Waste | Allies destroyed C-40 Crusher 2665 | -7/Waste | Discovered new exit (range 13) 2690 | -7/Waste | Identified exit to Factory 2695 | -7/Waste | Entered Factory 2695 | -7/Factory | Accompanied by 14 allies 2722 | -7/Factory | Identified exit to Garrison 2722 | -7/Factory | Entered Garrison 2722 | -7/Garrison | Accompanied by 14 allies 2738 | -7/Garrison | Triggered checkpoint 2768 | -7/Garrison | Triggered checkpoint 2781 | -7/Garrison | Installed Relay Interface Framework 2808 | -7/Garrison | Garrison Relay disabled 2842 | -7/Garrison | Build established: Scavenger-Mutant 2988 | -7/Garrison | Triggered checkpoint 3008 | -7/Garrison | Discovered new exit (range 62) 3008 | -7/Garrison | Discovered new exit (range 72) 3008 | -7/Garrison | Discovered new exit (range 55) 3032 | -7/Garrison | Garrison Relay disabled 3155 | -7/Garrison | Expanded RIF knowledge: Structural Interface 3220 | -7/Garrison | Lost 3 allies 3254 | -7/Garrison | Triggered checkpoint 3286 | -7/Garrison | Triggered checkpoint 3354 | -7/Garrison | Triggered checkpoint 3646 | -7/Garrison | Lost 5 allies 3669 | -7/Garrison | Identified exit to Factory 3712 | -7/Garrison | Entered Factory 3712 | -7/Factory | Accompanied by 4 allies 3721 | -7/Factory | Identified exit to DSF 3722 | -7/Factory | Entered DSF 3722 | -7/DSF | Accompanied by 4 allies 3748 | -7/DSF | Additional patrols routed to DSF 3899 | -7/DSF | Build established: Mutant 3951 | -7/DSF | Discovered new exit (range 15) 3971 | -7/DSF | Identified exit to Garrison 3972 | -7/DSF | Entered Garrison 3972 | -7/Garrison | Accompanied by 1 ally 4008 | -7/Garrison | Triggered checkpoint 4042 | -7/Garrison | Triggered checkpoint 4042 | -7/Garrison | Triggered checkpoint 4048 | -7/Garrison | Triggered checkpoint 4058 | -7/Garrison | Triggered checkpoint 4078 | -7/Garrison | Core integrity fell below 50% 4084 | -7/Garrison | Core integrity fell below 20% 4085 | -7/Garrison | Destroyed by S-27 Virus with Autogun Last Messages --------------- 04073_ Jacked G-47 Trooper... >>overwrite_iff Rewriting IFF filter. 04073_ Jacked G-47 Trooper... >>disable_weapons Deactivating 1 weapon system. 04073_ Imp. Gravmag System destroyed. 04075_ G-47 Trooper destroyed. 04075_ Acquired Lgt. Nuclear Core. 04076_ Imp. Gravmag System destroyed. 04076_ Imp. Gyrokinetic Inverter destroyed. 04080_ Jacked B-48 Gladiator... 04080_ Imp. Gravmag System destroyed. 04082_ Adv. Datajack destroyed. 04082_ System corrupted by crushing effect (+1). 04082_ Lgt. Nuclear Core destroyed. 04083_ Slammed into B-48 Gladiator. 04084_ Acquired 52 matter. 04084_ Imp. Signal Interpreter destroyed. 04084_ System corrupted by crushing effect (+2). Map ----- +----------------------------------------------------+ | ?????????????????????????????????????????????????? | | ?????????????????????????????????????????????????? | | ?????????????????????????????????????????????????? | | ?????????????????????????????????????????????????? | | ?????????????????????????????????????????????????? | | ?????????????????????????????????????????????????? | | ?????????????????????????????????????????????????? | | ?????????????????????????????????????????????????? | | ?????????????????????????????????????????????????? | | ?????????????????????????????????????????????????? | | ?????????????????????????????????????????????????? | | ?????????????????????????????????????????????????? | | ?????????????????????????????????????????????????? | | ?????????????????????????????????????????????????? | | ?????????????????????????????????????????????????? | | ?????????????????????????????????????????????????? | | ?????????????????????????????????????????????????? | | ???????????????????????#+##??????????????????????? | | ??????????????????????## ??????????????????????? | | ??????????????????????? #??????????????????????? | | ??????????????????????? #??????????????????????? | | ???????????????????????#s #??????????????????????? | | ???????????????????????# #??????????????????????? | | ??????????????????# ####s ###????????????????????? | | ???????????????????? s bss?????????????????????? | | ???????????????????????#s@#??????????????????????? | | ???????????????????????#ss#?????????????#+####???? | | ???????????????????????#s #?????????????# #???? | | ???????????????????????#sl#????????##+### ###+# | | ???????????????????????#sh#####+#### | | ???????????????????????# | | ???????????????????????# | | ???????????????????????############# ## ## | | ?????????????????????????????????### ## ## | | ?????????????????????????????????# = | | ?????????????????????????????????# !%! | | ?????????????????????????????????# *% | | ?????????????????????????????????# *%= | | ?????????????????????????????????### ## ## | | ???????????????????????????????????# ## ## | | ?????????????????????????????????? | | ???????????????????????????????? | | ??????????????????????????????? | | ??????????????????????????????#######+### ##++# | | ????????????????????????????????????????# #???? | | ????????????????????????????????????????######???? | | ?????????????????????????????????????????????????? | | ?????????????????????????????????????????????????? | | ?????????????????????????????????????????????????? | | ?????????????????????????????????????????????????? | +----------------------------------------------------+ Best States ------------- Heat Dissipation 61 Energy Generation 25 Energy Capacity 275 Matter Stores 300 Matter Capacity 300 Sight Range 16 Robot Scan Range 15 Terrain Scan Density 10 Base Temperature (-) 100 Armor Coverage 375 Evasion (%) 59 Recoil Reduction 2 Relay Coupler Types 1 Relay Coupler Value 27 Authchip Count 1 Item Schematics ----------------- Cesium-ion Thruster | -8/Materials | Hacked Robot Schematics ------------------ None Fabricated ------------ Nothing Alien Tech Used ----------------- None Achievements -------------- Hunted Challenges ------------ None Game ------ Seed CargoLightningSpoofer Manual? 0 Play Time 00:48:48 Cumulative 129.1 hours Start 2024.04.26 @ 13:16:47 End 2024.04.26 @ 14:15:31 Sessions 1 Manual Loads 0 Difficulty Rogue Special Mode None Game No. 252 Rogue 252 Adventurer 0 Explorer 0 Win Type - Total 0 Types 0/0/0/0/0/0/0/0/0 Lore% 33 Gallery% 47 Achievement% 33 Wizard Run 0 Options --------- Layout 1 ASCII 0 Keyboard 0 Movement Mouse Keybinds 0 Fullscreen 1 Font 24/Smallcaps Map View 50x40 Zoom Use 0% Tactical HUD 1 Map Filters NONE Filters NONE Steam 1 RUN: 2ff89385-0458-4669-9d88-bdaaf12379b0